bitfinex-derivatives/quotes_BTCF0:USTF0_20250324
["timestamp","ask_amount","ask_price","bid_price","bid_amount"]
[1742824862769,0.58992854,87696.0,87695.0,0.00108002]
[1742824862967,0.84182854,87696.0,87695.0,2e-08]
[1742824863169,0.84182854,87696.0,87695.0,0.00060002]
[1742824863469,0.84682854,87696.0,87695.0,0.00160002]
[1742824864073,0.84682854,87696.0,87695.0,0.00100002]
[1742824864282,0.59892854,87696.0,87695.0,0.11502932]
[1742824864469,0.59892854,87696.0,87695.0,0.11562932]
[1742824864779,0.59792854,87696.0,87695.0,0.37022932]
[1742824864963,0.12310054,87696.0,87695.0,0.59022932]
[1742824865170,0.1140158,87710.0,87709.0,0.1710134]
[1742824865473,0.11509581,87710.0,87709.0,0.0576049]
[1742824865680,0.11509581,87710.0,87709.0,0.0570049]
[1742824865979,0.114028,87696.0,87695.0,0.00100002]
[1742824866276,0.00108001,87696.0,87695.0,0.11610932]
[1742824866471,0.11510801,87696.0,87695.0,0.33610932]
[1742824866670,0.11510801,87696.0,87695.0,0.33510932]
[1742824866873,0.00308001,87696.0,87695.0,0.33510932]
[1742824867181,0.00017099,87712.0,87710.0,0.1140098]
[1742824867476,0.00116001,87711.0,87710.0,0.7154098]
[1742824867689,0.00017099,87712.0,87711.0,0.1140085]
[1742824867980,0.11417819,87712.0,87711.0,0.4639085]
[1742824868177,0.11417819,87712.0,87711.0,0.1199]
[1742824868480,0.1152982,87712.0,87711.0,0.2339085]
[1742824868977,0.001291,87712.0,87711.0,0.2339085]
[1742824869174,0.00017099,87712.0,87711.0,0.4839085]
[1742824869364,0.11417819,87712.0,87711.0,0.4839085]
[1742824869566,0.1152582,87712.0,87711.0,0.1199]
[1742824869772,0.59006833,87712.0,87711.0,0.1199]
[1742824870176,0.71876833,87712.0,87711.0,0.1199]
[1742824870373,0.85106833,87712.0,87711.0,0.1193]
[1742824870573,0.114028,87696.0,87695.0,2e-08]
[1742824870777,0.47590801,87696.0,87695.0,2e-08]
[1742824871177,0.73690801,87696.0,87695.0,2e-08]
[1742824871382,0.11509014,87696.0,87695.0,0.36402932]
[1742824871585,0.2280403,87705.0,87704.0,0.1140146]
[1742824871775,0.2288003,87705.0,87704.0,0.1146146]
[1742824872082,0.5896003,87705.0,87704.0,0.0006]
[1742824872478,0.1147763,87705.0,87704.0,0.3346176]
[1742824873070,0.00076,87705.0,87704.0,0.3346176]
[1742824873276,0.1140163,87705.0,87704.0,0.3346176]
[1742824873884,0.1140163,87705.0,87704.0,0.1146176]
[1742824874193,0.1147763,87705.0,87704.0,0.1146176]
[1742824874487,0.1157763,87705.0,87704.0,0.1146176]
[1742824874685,0.1167763,87705.0,87704.0,0.5030176]
[1742824874984,0.1160163,87705.0,87704.0,0.4830176]
[1742824875199,8e-05,87707.0,87706.0,0.114015]
[1742824875391,0.00017099,87712.0,87711.0,0.1140085]
[1742824875690,0.11493819,87712.0,87711.0,0.6214]
[1742824875892,0.11417819,87712.0,87711.0,0.4754085]
[1742824876081,0.11493819,87712.0,87711.0,0.3614]
[1742824876283,0.11493819,87712.0,87711.0,0.241]
[1742824877181,0.23793819,87712.0,87711.0,0.241]
[1742824877586,0.24693754,87712.0,87711.0,0.241]
[1742824877780,0.37183754,87712.0,87711.0,0.241]
[1742824878288,0.36283819,87712.0,87711.0,0.241]
[1742824878486,0.47784832,87712.0,87711.0,0.1207]
[1742824878991,0.47984832,87712.0,87711.0,0.1207]
[1742824879180,0.47984832,87712.0,87711.0,0.12138]
[1742824879884,0.47984832,87712.0,87711.0,0.1207]
[1742824880287,0.47984832,87712.0,87711.0,0.12154]
[1742824881078,0.47984832,87712.0,87711.0,0.1207]
[1742824881278,0.1140163,87705.0,87704.0,0.1197]
[1742824881479,0.114028,87696.0,87695.0,2e-08]
[1742824881684,0.114788,87696.0,87695.0,2e-08]
[1742824881992,0.22879813,87696.0,87695.0,0.00068002]
[1742824882191,0.35159813,87696.0,87695.0,0.11470932]
[1742824882382,0.00076,87696.0,87695.0,0.36470932]
[1742824882578,0.3608,87741.0,87724.0,0.1139862]
[1742824882792,0.1709841,87727.0,87725.0,0.1288]
[1742824883084,0.1716241,87727.0,87726.0,0.238089]
[1742824883283,0.1716241,87727.0,87726.0,0.238769]
[1742824883479,0.1716241,87727.0,87726.0,0.367569]
[1742824883878,0.1716241,87727.0,87726.0,0.25358]
[1742824884080,0.1726241,87727.0,87726.0,0.25358]
[1742824884283,0.1139981,87719.0,87718.0,0.00017099]
[1742824884495,0.11459811,87719.0,87718.0,0.00017099]
[1742824884692,0.11459811,87719.0,87718.0,0.00081099]
[1742824884897,0.22858875,87719.0,87718.0,0.00081099]
[1742824885092,0.35528875,87719.0,87718.0,0.12191099]
[1742824885785,0.35628875,87719.0,87718.0,0.12191099]
[1742824886391,0.35628875,87719.0,87718.0,0.36471039]
[1742824886797,0.35728875,87719.0,87718.0,0.36471039]
[1742824887384,0.00260001,87719.0,87718.0,0.36471039]
[1742824887696,0.82808,87734.0,87731.0,0.1709705]
[1742824887889,0.00060001,87733.0,87732.0,0.4916812]
[1742824888192,0.11457991,87733.0,87732.0,0.4922812]
[1742824888701,0.00060001,87733.0,87732.0,0.4922812]
[1742824889196,0.00108,87734.0,87733.0,0.1139799]
[1742824889401,8e-05,87742.0,87738.0,0.0569864]
[1742824889696,0.1143552,87752.0,87751.0,0.1139565]
[1742824889890,0.1149952,87752.0,87751.0,0.1145965]
[1742824890492,0.1149952,87752.0,87751.0,0.3583965]
[1742824891497,0.00104,87752.0,87751.0,0.5783965]
[1742824891802,8e-05,87756.0,87751.0,0.5783965]
[1742824891803,8e-05,87756.0,87755.0,0.1139513]
[1742824891987,8e-05,87756.0,87755.0,0.1146313]
[1742824892190,0.11403,87756.0,87755.0,0.1146313]
[1742824892599,0.00064,87756.0,87755.0,0.1146313]
[1742824892798,0.11419579,87760.0,87759.0,0.1139461]
[1742824893002,0.11419579,87760.0,87759.0,0.1146261]
[1742824893003,0.00093099,87760.0,87759.0,0.1146261]
[1742824893298,0.00025099,87760.0,87759.0,0.2647261]
[1742824893597,0.00017099,87760.0,87759.0,0.3933261]
[1742824893800,0.0004,87768.0,87767.0,0.1139357]
[1742824893998,8e-05,87781.0,87779.0,0.1139201]
[1742824894201,8e-05,87781.0,87780.0,0.1139188]
[1742824894402,0.00068001,87781.0,87780.0,0.2435188]
[1742824894703,0.00060001,87781.0,87780.0,0.3715188]
[1742824894907,8e-05,87782.0,87781.0,0.1139175]
[1742824895105,8e-05,87783.0,87782.0,0.1139162]
[1742824895296,0.1139149,87783.0,87782.0,0.118]
[1742824895608,0.22783282,87783.0,87782.0,0.1145962]
[1742824895797,0.00100001,87784.0,87782.0,0.1145962]
[1742824895798,0.00100001,87784.0,87782.0,0.3715962]
[1742824895996,0.00100001,87784.0,87783.0,0.1139149]
[1742824896202,0.00100001,87784.0,87783.0,0.3709149]
[1742824896506,0.0004,87784.0,87783.0,0.4881549]
[1742824896698,0.1143136,87784.0,87783.0,0.37424]
[1742824897405,0.1143136,87784.0,87783.0,0.4881549]
[1742824898709,0.1143136,87784.0,87783.0,0.3591549]
[1742824898893,0.1143136,87784.0,87783.0,0.24524]
[1742824899503,0.1143136,87784.0,87783.0,0.128]
[1742824900305,0.1143136,87784.0,87783.0,0.2419149]
[1742824900804,0.11491361,87784.0,87783.0,0.2425149]
[1742824901007,0.11491361,87784.0,87783.0,0.3682149]
[1742824901995,0.00100001,87784.0,87783.0,0.3682149]
[1742824902397,0.00100001,87784.0,87783.0,0.3982149]
[1742824902596,0.0004,87784.0,87783.0,0.3982149]
[1742824903001,0.0004,87784.0,87783.0,0.5272149]
[1742824904506,0.00017029,87789.0,87788.0,0.1139085]
[1742824904702,0.3612,87816.0,87810.0,0.1138772]
[1742824904895,0.1138773,87812.0,87811.0,0.2512]
[1742824905099,0.11447731,87812.0,87811.0,0.2518]
[1742824906104,0.11447731,87812.0,87811.0,0.3656786]
[1742824906312,0.11447731,87812.0,87811.0,0.6126]
[1742824906513,0.11447731,87812.0,87811.0,0.7264786]
[1742824906904,0.11447731,87812.0,87811.0,0.0006]
[1742824907099,0.1138877,87804.0,87803.0,0.00017088]
[1742824907304,0.11448771,87804.0,87803.0,0.00077088]
[1742824907498,0.11448771,87804.0,87803.0,0.11465988]
[1742824907912,0.11448771,87804.0,87803.0,0.53545988]
[1742824908098,0.00060001,87804.0,87803.0,0.53545988]
[1742824908513,0.1138877,87808.0,87807.0,0.1708225]
[1742824908713,0.1196,87810.0,87809.0,0.1138812]
[1742824909008,0.2281508,87816.0,87815.0,0.1138734]
[1742824909211,0.22875081,87816.0,87815.0,0.1144734]
[1742824909597,0.05793671,87816.0,87815.0,0.3693734]
[1742824909800,0.00100001,87816.0,87815.0,0.3693734]
[1742824910014,8e-05,87821.0,87820.0,0.1138669]
[1742824910308,8e-05,87821.0,87820.0,0.4715069]
[1742824910506,0.0569309,87824.0,87822.0,0.1138631]
[1742824910698,0.1715927,87824.0,87823.0,0.3687631]
[1742824910905,0.1715927,87824.0,87823.0,0.3695631]
[1742824911303,0.82516,87859.0,87823.0,1.0465]
[1742824911609,0.056923,87837.0,87834.0,0.17077]
[1742824911808,0.1707651,87841.0,87840.0,0.1707583]
[1742824912210,0.05796081,87841.0,87840.0,0.1717983]
[1742824912407,0.17182555,87841.0,87840.0,0.0579599]
[1742824912914,0.18088606,87841.0,87840.0,0.0579599]
[1742824914806,0.18088606,87841.0,87840.0,0.00104]
[1742824915610,0.1138475,87836.0,87835.0,0.1138466]
[1742824915815,0.11488751,87836.0,87835.0,0.00104]
[1742824916016,0.23658751,87836.0,87835.0,0.1138475]
[1742824916221,0.23658751,87836.0,87835.0,0.1148875]
[1742824916517,0.35043021,87836.0,87835.0,0.1148875]
[1742824916704,0.35949072,87836.0,87835.0,0.1148875]
[1742824917513,0.1138501,87833.0,87832.0,0.00017078]
[1742824917712,0.11445011,87833.0,87832.0,0.00017078]
[1742824918013,0.11445011,87833.0,87832.0,0.11402218]
[1742824918211,0.2373598,87833.0,87832.0,0.11474218]
[1742824918606,0.12351062,87833.0,87832.0,0.11474218]
[1742824918808,0.12351062,87833.0,87832.0,0.23574218]
[1742824919208,0.12351062,87833.0,87832.0,0.35774218]
[1742824919408,0.11445011,87833.0,87832.0,0.35774218]
[1742824919823,0.00060001,87833.0,87832.0,0.35774218]
[1742824920314,0.00060001,87833.0,87832.0,0.74394218]
[1742824920511,0.1162,87850.0,87832.0,0.74394218]
[1742824920512,0.1251,87846.0,87840.0,0.113841]
[1742824920826,0.1162,87861.0,87846.0,0.1138332]
[1742824921004,0.0569863,87862.0,87856.0,0.113819]
[1742824921005,0.1138217,87857.0,87856.0,0.113819]
[1742824921209,0.1144617,87857.0,87856.0,0.113819]
[1742824921413,0.2384617,87857.0,87856.0,0.115099]
[1742824921612,0.12464,87857.0,87856.0,0.359899]
[1742824921810,0.238459,87857.0,87856.0,0.359899]
[1742824922516,0.00064,87857.0,87856.0,0.359899]
[1742824922721,0.1138138,87861.0,87860.0,0.1707194]
[1742824923016,0.0004,87864.0,87863.0,0.1138112]
[1742824923207,0.0004,87864.0,87863.0,0.4711312]
[1742824923713,0.1706976,87873.0,87872.0,0.0568991]
[1742824923911,0.056901,87871.0,87869.0,0.11604]
[1742824924211,0.24894873,87870.0,87869.0,0.11604]
[1742824924511,0.24962873,87870.0,87869.0,0.11724]
[1742824925420,0.24962873,87870.0,87869.0,0.0012]
[1742824925621,0.49293386,87870.0,87869.0,0.0012]
[1742824925820,0.49293386,87870.0,87864.0,0.00017078]
[1742824925821,0.1138086,87865.0,87864.0,0.11398068]
[1742824926021,0.1144486,87865.0,87864.0,0.00137078]
[1742824926323,0.12349513,87865.0,87864.0,0.11518068]
[1742824928124,0.12349513,87865.0,87864.0,0.00137078]
[1742824928427,0.48429513,87865.0,87864.0,0.00137078]
[1742824928618,0.48429513,87865.0,87864.0,0.11518068]
[1742824929023,0.12349513,87865.0,87864.0,0.11518068]
[1742824929221,0.00968653,87865.0,87864.0,0.22518068]
[1742824929417,0.00904653,87865.0,87864.0,0.60918068]
[1742824929922,0.00904653,87865.0,87864.0,0.48508068]
[1742824930126,0.00904653,87865.0,87864.0,0.61418068]
[1742824930715,0.0568993,87873.0,87872.0,0.0568985]
[1742824930914,0.05749931,87873.0,87872.0,0.0568985]
[1742824931123,0.05749931,87873.0,87872.0,0.1718942]
[1742824931328,0.00060001,87873.0,87872.0,0.4318942]
[1742824931514,0.11439831,87873.0,87872.0,0.4318942]
[1742824932023,8e-05,87876.0,87872.0,0.5680985]
[1742824932226,8e-05,87876.0,87875.0,0.1137957]
[1742824932430,0.1152344,87876.0,87875.0,0.23101553]
[1742824932615,0.1137926,87878.0,87877.0,0.1137918]
[1742824932815,0.3669526,87878.0,87877.0,0.1151518]
[1742824933016,0.3669526,87878.0,87877.0,0.3744518]
[1742824933217,0.82736,87896.0,87879.0,0.1137905]
[1742824933417,0.0004,87896.0,87879.0,0.3626]
[1742824933712,0.1706639,87893.0,87892.0,0.1137711]
[1742824933920,0.1706639,87893.0,87892.0,0.1156111]
[1742824934122,0.1322,87893.0,87892.0,0.1156111]
[1742824934322,0.1322,87893.0,87892.0,0.7385111]
[1742824934536,0.1322,87893.0,87892.0,0.9885111]
[1742824934824,0.0004,87896.0,87895.0,0.1137698]
[1742824935025,0.0004,87896.0,87895.0,0.5855698]
[1742824935219,0.1141685,87896.0,87895.0,0.7597698]
[1742824935622,0.1141685,87896.0,87895.0,0.0018]
[1742824936222,0.2463685,87896.0,87895.0,0.3755698]
[1742824936618,0.1326,87896.0,87895.0,0.3755698]
[1742824936824,0.0004,87896.0,87895.0,0.3755698]
[1742824937327,0.1141685,87896.0,87895.0,0.0018]
[1742824937716,0.1141685,87896.0,87895.0,0.1155698]
[1742824937925,0.1141685,87896.0,87895.0,0.3355698]
[1742824938129,0.1141685,87896.0,87895.0,0.5889698]
[1742824939327,0.2464685,87896.0,87895.0,0.5889698]
[1742824939728,0.2464685,87896.0,87895.0,0.2464698]
[1742824939928,0.0004,87896.0,87895.0,0.4664698]
[1742824940330,0.0004,87896.0,87895.0,0.5983698]
[1742824940521,0.1141685,87896.0,87895.0,0.3783698]
[1742824941128,0.2464685,87896.0,87895.0,0.3783698]
[1742824942845,0.1141685,87896.0,87895.0,0.5983698]
[1742824943431,0.1141685,87896.0,87895.0,0.3783698]
[1742824944830,0.00931409,87896.0,87895.0,0.3783698]
[1742824945026,0.12308259,87896.0,87895.0,0.3783698]
[1742824945639,0.2438685,87896.0,87895.0,0.3783698]
[1742824945841,0.2438685,87896.0,87895.0,0.2646]
[1742824946333,0.3699685,87896.0,87895.0,0.2646]
[1742824946530,0.1141685,87896.0,87895.0,0.3783698]
[1742824946730,0.0004,87896.0,87895.0,0.6283698]
[1742824947438,0.12317644,87896.0,87895.0,0.6283698]
[1742824947942,0.00940794,87896.0,87895.0,0.6283698]
[1742824948522,0.13550794,87896.0,87895.0,0.6283698]
[1742824948826,0.24927644,87896.0,87895.0,0.1327]
[1742824949227,0.37847644,87896.0,87895.0,0.1327]
[1742824949427,0.37847644,87896.0,87895.0,0.2464698]
[1742824949627,0.26470794,87896.0,87895.0,0.2464698]
[1742824949926,0.26470794,87896.0,87895.0,0.4664698]
[1742824950133,0.00940794,87896.0,87895.0,0.8183698]
[1742824951930,0.00048,87912.0,87905.0,0.0568778]
[1742824952124,0.1276,87909.0,87908.0,0.113753]
[1742824952331,0.00048,87912.0,87911.0,0.1137491]
[1742824952537,0.00048,87912.0,87911.0,0.3655491]
[1742824952731,0.00048,87912.0,87911.0,0.5845491]
[1742824952938,0.2425332,87928.0,87927.0,0.1137284]
[1742824953136,0.1137297,87926.0,87925.0,0.1226]
[1742824953342,0.0568693,87920.0,87919.0,0.1137387]
[1742824953540,0.1706093,87920.0,87919.0,0.1155787]
[1742824953844,0.1706093,87920.0,87919.0,0.12405744]
[1742824954033,0.1706093,87920.0,87919.0,0.13614281]
[1742824954240,0.1706093,87920.0,87919.0,0.38814281]
[1742824955343,0.1706093,87920.0,87919.0,0.37605744]
[1742824956140,0.0568693,87920.0,87919.0,0.37605744]
[1742824956652,0.2574,87922.0,87921.0,0.1137361]
[1742824956948,0.2574,87922.0,87921.0,0.3555361]
[1742824957144,0.1276,87922.0,87921.0,0.6156361]
[1742824957442,0.5342159,87940.0,87939.0,0.1137129]
[1742824957646,0.5342159,87940.0,87939.0,0.1155129]
[1742824957845,0.4176559,87940.0,87939.0,0.1155129]
[1742824958234,0.3608,87940.0,87939.0,0.1155129]
[1742824958748,0.12010891,87960.0,87959.0,0.113687]
[1742824958953,0.16163955,87982.0,87981.0,0.1136586]
[1742824959138,0.0004,88008.0,88002.0,0.1136315]
[1742824959442,0.45228928,88003.0,88002.0,0.0018]
[1742824959631,0.45228928,88003.0,88002.0,0.0118]
[1742824959832,0.113656,87983.0,87982.0,0.3608]
[1742824960033,0.113656,87983.0,87982.0,0.0018]
[1742824960251,0.2534,87984.0,87974.0,0.11383757]
[1742824960448,0.3608,87998.0,87981.0,0.3608]
[1742824960638,0.0568246,87989.0,87982.0,0.2373761]
[1742824960837,0.124,87988.0,87987.0,0.1136508]
[1742824961033,0.124,87988.0,87987.0,0.00184]
[1742824961034,0.2454,87988.0,87987.0,0.00184]
[1742824961338,0.7198495,87988.0,87987.0,0.00184]
[1742824961734,0.8444095,87988.0,87987.0,0.00184]
[1742824962050,0.1136663,87975.0,87974.0,0.00017047]
[1742824962235,0.1143063,87975.0,87974.0,0.00017047]
[1742824962436,0.1143063,87975.0,87974.0,0.47463807]
[1742824962742,0.1143063,87975.0,87974.0,0.47587807]
[1742824963055,0.1149863,87975.0,87974.0,0.36221047]
[1742824963349,0.00132,87975.0,87974.0,0.47587807]
[1742824963550,8e-05,87977.0,87976.0,0.113665]
[1742824963745,8e-05,87977.0,87976.0,0.114905]
[1742824963936,8e-05,87977.0,87976.0,0.240405]
[1742824964138,8e-05,87984.0,87983.0,0.113656]
[1742824964338,8e-05,87984.0,87983.0,0.475776]
[1742824964536,0.1254,87991.0,87990.0,0.113647]
[1742824964750,0.00132,87991.0,87990.0,0.114967]
[1742824964935,0.1259,88023.0,88007.0,0.113625]
[1742824965258,0.1136174,88013.0,88007.0,0.113625]
[1742824965453,0.12476,88022.0,88007.0,0.12697223]
[1742824965750,0.0572017,88024.0,88007.0,0.12697223]
[1742824965751,0.0004,88024.0,88007.0,0.12697223]
[1742824966250,0.1287,88024.0,88007.0,0.12697223]
[1742824966550,0.1287,88024.0,88007.0,0.13535069]
[1742824966551,0.00924576,88008.0,88007.0,0.13535069]
[1742824966738,0.00924576,88008.0,88007.0,0.33445069]
[1742824966934,0.00884576,88008.0,88007.0,0.33445069]
[1742824967138,0.1287,88024.0,88022.0,0.1136049]
[1742824967342,0.12998,88024.0,88023.0,0.2389243]
[1742824967636,0.12998,88024.0,88023.0,0.3740643]
[1742824968040,0.12098,88024.0,88023.0,0.3740643]
[1742824968247,0.12987059,88024.0,88023.0,0.3740643]
[1742824968839,0.24347369,88024.0,88023.0,0.00124]
[1742824969053,0.1136178,88014.0,88008.0,0.1339]
[1742824969243,0.1136224,88009.0,88008.0,0.02132]
[1742824969443,0.12383299,88009.0,88008.0,0.1349437]
[1742824970141,0.12383299,88009.0,88008.0,0.01132]
[1742824970340,0.1136237,88008.0,88007.0,0.01210723]
[1742824970547,0.2455543,88008.0,88007.0,0.00124]
[1742824970742,0.1704502,88003.0,88002.0,0.1136288]
[1742824970948,0.06723746,88003.0,88002.0,0.1716838]
[1742824971139,0.01042126,88003.0,88002.0,0.1716838]
[1742824971336,0.00918125,88003.0,88002.0,0.3026838]
[1742824971541,0.12281145,88003.0,88002.0,0.3026838]
[1742824971742,0.12405146,88003.0,88002.0,0.058055]
[1742824972255,0.01042126,88003.0,88002.0,0.058055]
[1742824972449,0.01042126,88003.0,88002.0,0.189055]
[1742824972771,8e-05,88018.0,88017.0,0.1136121]
[1742824972947,8e-05,88018.0,88017.0,0.2403721]
[1742824973249,0.12874585,88018.0,88017.0,0.12668]
[1742824973440,0.12874585,88018.0,88017.0,0.1152121]
[1742824973642,0.01513505,88018.0,88017.0,0.1152121]
[1742824973846,0.14370113,88018.0,88017.0,0.1152121]
[1742824974352,0.12864608,88018.0,88017.0,0.1152121]
[1742824974554,0.14805528,88018.0,88017.0,0.1152121]
[1742824974755,0.2467108,88018.0,88017.0,0.1152121]
[1742824974944,0.3760108,88018.0,88017.0,0.1152121]
[1742824975541,0.2624,88018.0,88017.0,0.1152121]
[1742824975739,0.3760108,88018.0,88017.0,0.1152121]
[1742824976149,0.2624,88018.0,88017.0,0.1152121]
[1742824977239,0.2624,88018.0,88017.0,0.2391121]
[1742824978547,0.09191557,88018.0,88017.0,0.1152121]
[1742824978945,0.20552637,88018.0,88017.0,0.1152121]
[1742824979856,0.21479393,88018.0,88017.0,0.1152121]
[1742824980264,0.22968825,88018.0,88017.0,0.08963736]
[1742824980449,0.23080826,88018.0,88017.0,0.00112]
[1742824980645,0.056809,88013.0,88001.0,0.01154744]
[1742824980846,0.1136315,88004.0,88003.0,0.1704395]
[1742824981041,0.12933712,88004.0,88003.0,0.00088]
[1742824981249,0.113634,88000.0,87995.0,0.0568198]
[1742824981449,0.1136405,87995.0,87994.0,0.1136409]
[1742824981751,0.03933394,87995.0,87994.0,0.1141009]
[1742824982056,0.03933394,87995.0,87994.0,0.12489465]
[1742824982243,0.15297444,87995.0,87994.0,0.12489465]
[1742824982443,0.15297444,87995.0,87994.0,0.01147375]
[1742824982649,0.15297444,87995.0,87994.0,0.1136418]
[1742824982858,0.1136431,87993.0,87992.0,0.42959372]
[1742824983151,0.12887687,87993.0,87992.0,0.42959372]
[1742824983356,0.1136431,87993.0,87992.0,0.42959372]
[1742824983553,0.13807142,87993.0,87992.0,0.37277202]
[1742824983755,0.13807142,87993.0,87986.0,0.00017047]
[1742824983756,0.1136508,87987.0,87986.0,0.00017047]
[1742824983952,0.1136547,87984.0,87983.0,0.00045463]
[1742824984151,0.4744547,87984.0,87983.0,0.11411063]
[1742824984458,0.1136573,87982.0,87981.0,0.0722262]
[1742824984857,0.13808562,87982.0,87981.0,0.0722262]
[1742824985048,0.0568321,87977.0,87973.0,0.3608]
[1742824985249,0.1136676,87974.0,87973.0,0.48651516]
[1742824985651,0.1136676,87974.0,87973.0,0.37284846]
[1742824985956,0.22733819,87974.0,87973.0,0.37284846]
[1742824986158,0.22733819,87974.0,87967.0,0.00045471]
[1742824986159,0.1136754,87968.0,87967.0,0.00045471]
[1742824986362,0.113687,87959.0,87958.0,0.2376079]
[1742824986557,0.113687,87959.0,87958.0,0.351295]
[1742824986758,0.1705281,87961.0,87960.0,0.1136857]
[1742824987062,0.9390676,87974.0,87973.0,0.1136689]
[1742824987251,0.1136702,87972.0,87971.0,0.3608]
[1742824987556,0.1136702,87972.0,87971.0,0.1142715]
[1742824987557,0.1143502,87972.0,87971.0,0.1142715]
[1742824987775,0.1143502,87972.0,87971.0,0.0006]
[1742824988056,0.1143502,87972.0,87971.0,0.1142715]
[1742824988258,0.35152337,87972.0,87971.0,0.0006]
[1742824988450,0.113687,87959.0,87952.0,0.00017047]
[1742824988655,0.113687,87959.0,87955.0,0.0568456]
[1742824988656,0.1136883,87958.0,87955.0,0.0568456]
[1742824988863,0.2378283,87958.0,87957.0,0.4750896]
[1742824989454,0.2378283,87958.0,87957.0,0.37327484]
[1742824989645,0.35150147,87958.0,87957.0,0.37327484]
[1742824989851,0.35150147,87958.0,87957.0,0.48696444]
[1742824990053,0.1235,87964.0,87963.0,0.1136818]
[1742824990257,0.1235,87964.0,87963.0,0.2382418]
[1742824990556,0.2371805,87964.0,87963.0,0.00072]
[1742824990759,0.35159177,87964.0,87963.0,0.00072]
[1742824991153,0.35159177,87964.0,87963.0,0.1144018]
[1742824991356,0.47319177,87964.0,87963.0,0.1144018]
[1742824992464,0.47319177,87964.0,87963.0,0.00072]
[1742824993053,0.1136922,87955.0,87954.0,0.1136929]
[1742824993268,0.1143722,87955.0,87954.0,0.1142929]
[1742824993960,0.25578,87955.0,87954.0,0.4750929]
[1742824994359,0.3694722,87955.0,87954.0,0.4750929]
[1742824994559,0.25578,87955.0,87954.0,0.4750929]
[1742824994967,0.3694722,87955.0,87954.0,0.4750929]
[1742824995358,0.25578,87955.0,87954.0,0.4750929]
[1742824995763,0.3694722,87955.0,87954.0,0.48686427]
[1742824995960,0.3694722,87955.0,87954.0,0.37317137]
[1742824996162,0.3694722,87955.0,87954.0,0.48686487]
[1742824996362,0.48316734,87955.0,87954.0,0.37317137]
[1742824997467,0.48316734,87955.0,87952.0,0.00017047]
[1742824997468,0.1136948,87953.0,87952.0,0.00017047]
[1742824997770,0.1137075,87946.0,87945.0,0.1137016]
[1742824997953,0.12324,87946.0,87945.0,0.1137016]
[1742824998159,0.1257,87952.0,87945.0,0.1137016]
[1742824998160,0.1257,87952.0,87951.0,0.1136973]
[1742824998466,0.12654,87952.0,87951.0,0.1145373]
[1742824998669,0.3650361,87952.0,87951.0,0.1145373]
[1742824998970,0.47873512,87952.0,87951.0,0.00084]
[1742824999273,0.0568506,87949.0,87948.0,0.1137012]
[1742824999569,0.0576906,87949.0,87948.0,0.1143012]
[1742824999959,0.3649429,87949.0,87948.0,0.1143012]
[1742825000353,0.12644,87949.0,87948.0,0.1143012]
[1742825000679,0.1292,87955.0,87954.0,0.1136935]
[1742825000862,0.00101047,87966.0,87965.0,0.1136793]
[1742825001170,0.00185047,87966.0,87965.0,0.1136793]
[1742825001371,0.00101047,87966.0,87965.0,0.1142793]
[1742825001571,8e-05,87975.0,87965.0,0.12392]
[1742825001870,8e-05,87975.0,87974.0,0.4744676]
[1742825002067,8e-05,87975.0,87974.0,0.4750676]
[1742825002270,0.00072,87975.0,87974.0,0.4750676]
[1742825002457,0.00072,87975.0,87974.0,0.48698399]
[1742825002656,0.00072,87975.0,87974.0,0.86442399]
[1742825002657,0.12674,87975.0,87974.0,0.86442399]
[1742825003058,0.1261,87975.0,87974.0,0.86442399]
[1742825003259,0.00048,87976.0,87975.0,0.1136663]
[1742825003471,0.00048,87976.0,87975.0,0.1142663]
[1742825003674,0.0004,87976.0,87975.0,0.3670663]
[1742825004474,0.114065,87976.0,87975.0,0.3620263]
[1742825004675,0.37255713,87976.0,87975.0,0.0006]
[1742825004876,0.48622513,87976.0,87975.0,0.0006]
[1742825005380,0.1136702,87972.0,87971.0,0.01191515]
[1742825005571,0.1136728,87970.0,87969.0,0.1136735]
[1742825005764,0.1136767,87967.0,87966.0,0.53148617]
[1742825005960,0.11427671,87967.0,87966.0,0.41840837]
[1742825006366,0.11427671,87967.0,87966.0,0.00077047]
[1742825006367,0.12322884,87967.0,87966.0,0.00077047]
[1742825006572,0.12322884,87967.0,87966.0,0.00017047]
[1742825006768,0.23690201,87967.0,87966.0,0.00017047]
[1742825006971,0.23690201,87967.0,87966.0,0.11384847]
[1742825007475,0.23690201,87967.0,87966.0,0.11444847]
[1742825008875,0.12322531,87967.0,87966.0,0.11444847]
[1742825009074,0.23690201,87967.0,87966.0,0.11444847]
[1742825009573,0.23690201,87967.0,87966.0,0.00077047]
[1742825009778,0.23690201,87967.0,87966.0,0.36157047]
[1742825009976,0.49980201,87967.0,87966.0,0.47524847]
[1742825010673,0.49980201,87967.0,87966.0,0.48657047]
[1742825010875,0.49980201,87967.0,87966.0,0.00077047]
[1742825011074,0.5683991,87965.0,87940.0,0.49593999]
[1742825011269,0.1137103,87941.0,87940.0,0.3614]
[1742825011586,0.23783031,87941.0,87940.0,0.0006]
[1742825011777,0.1137129,87939.0,87938.0,0.19894442]
[1742825011976,0.1144729,87939.0,87938.0,0.19954442]
[1742825012169,0.1144729,87939.0,87938.0,0.56034442]
[1742825012370,0.12344,87964.0,87944.0,0.0568532]
[1742825012672,0.3743805,87964.0,87963.0,0.1136818]
[1742825012865,0.0568467,87955.0,87952.0,0.0568479]
[1742825013066,0.1136948,87953.0,87952.0,0.0006]
[1742825013266,0.0761748,87953.0,87952.0,0.0006]
[1742825013466,0.3368748,87953.0,87952.0,0.0006]
[1742825013672,0.45058158,87953.0,87952.0,0.0006]
[1742825013968,0.45969232,87953.0,87952.0,0.0006]
[1742825014179,0.45969232,87953.0,87949.0,0.0568496]
[1742825014180,0.1705511,87950.0,87949.0,0.0568496]
[1742825014381,0.17115111,87950.0,87949.0,0.0568496]
[1742825014876,0.17115111,87950.0,87949.0,0.1705495]
[1742825015082,0.1137051,87945.0,87944.0,0.00017057]
[1742825015287,0.11430511,87945.0,87944.0,0.00017057]
[1742825015782,0.48621746,87945.0,87944.0,0.00017057]
[1742825017883,0.48621746,87945.0,87935.0,0.00045488]
[1742825017884,0.1137167,87936.0,87935.0,0.00045488]
[1742825018072,0.2368367,87936.0,87935.0,0.00109488]
[1742825018267,0.59823671,87936.0,87935.0,0.00109488]
[1742825018484,0.60734745,87936.0,87935.0,0.00045488]
[1742825018785,0.113731,87925.0,87924.0,0.3608]
[1742825018983,0.1137361,87921.0,87920.0,0.2960004]
[1742825019181,0.1137361,87921.0,87920.0,0.1254]
[1742825019382,0.1137374,87920.0,87919.0,0.11419366]
[1742825019685,0.11431972,87921.0,87920.0,0.1137374]
[1742825019884,0.00060001,87921.0,87920.0,0.3689374]
[1742825020182,0.00068,87923.0,87922.0,0.1137349]